bitfinex/quotes_SOLUSD_20260124
["timestamp","ask_amount","ask_price","bid_price","bid_amount"]
[1769247057795,3.15744874,127.16,127.14,2.9653523]
[1769247076109,3.33530662,127.18,127.14,2.9653523]
[1769247076298,9.2282533,127.17,127.14,5.08508838]
[1769247076603,3.33530662,127.17,127.14,28.69319382]
[1769247078511,3.33530662,127.17,127.14,5.08508838]
[1769247098856,3.33530662,127.17,127.14,5.08494887]
[1769247102552,3.33530662,127.17,127.14,2.9653523]
[1769247105636,3.33530662,127.17,127.14,26.57345774]
[1769247115762,3.33530662,127.17,127.14,28.69305431]
[1769247117471,3.33530662,127.17,127.14,26.57345774]
[1769247131096,3.33530662,127.17,127.14,28.69305431]
[1769247132901,3.33530662,127.17,127.14,26.57345774]
[1769247138610,3.33530662,127.17,127.14,2.9653523]
[1769247139830,3.33530662,127.17,127.14,26.57345774]
[1769247177774,3.33530662,127.17,127.14,23.60810544]
[1769247178257,3.33530662,127.17,127.14,26.84227904]
[1769247183487,5.89473659,127.16,127.14,26.84227904]
[1769247183782,3.33530662,127.17,127.14,26.84227904]
[1769247183964,5.89473659,127.16,127.14,26.84227904]
[1769247184149,3.33530662,127.17,127.14,26.84227904]
[1769247185473,3.33530662,127.17,127.14,3.2341736]
[1769247185972,5.89473788,127.16,127.14,3.2341736]
[1769247186177,3.33530662,127.17,127.14,3.2341736]
[1769247186469,5.89413886,127.16,127.14,3.2341736]
[1769247186667,3.33530662,127.17,127.14,3.2341736]
[1769247186882,5.89386661,127.16,127.14,3.2341736]
[1769247187060,3.33530662,127.17,127.14,3.2341736]
[1769247187257,5.89376188,127.16,127.14,3.2341736]
[1769247187462,3.33530662,127.17,127.14,3.2341736]
[1769247187669,5.89375333,127.16,127.14,3.2341736]
[1769247187862,3.33530662,127.17,127.14,26.84227904]
[1769247188484,5.89361123,127.16,127.14,26.84227904]
[1769247188684,3.33530662,127.17,127.14,26.84227904]
[1769247208492,3.3527756,127.18,127.15,3.26400575]
[1769247208696,5.89160982,127.17,127.16,3.26400575]
[1769247208994,3.3527756,127.18,127.16,3.26400575]
[1769247209200,5.89163337,127.17,127.16,5.38372141]
[1769247210806,5.89163337,127.17,127.16,3.26400575]
[1769247211104,5.89163337,127.17,127.15,28.98996919]
[1769247211302,3.3527756,127.18,127.15,28.98996919]
[1769247211509,5.89160495,127.17,127.15,26.87025353]
[1769247211684,3.3527756,127.18,127.15,28.98996919]
[1769247211887,5.89179901,127.17,127.15,28.98996919]
[1769247212186,3.3527756,127.18,127.15,28.98996919]
[1769247212411,5.89119348,127.17,127.15,28.98996919]
[1769247212592,3.3527756,127.18,127.15,28.98996919]
[1769247212794,5.89120175,127.17,127.15,28.98996919]
[1769247212994,3.3527756,127.18,127.15,28.98996919]
[1769247213295,5.89120259,127.17,127.15,28.98996919]
[1769247213492,3.3527756,127.18,127.15,28.98996919]
[1769247213696,5.89078066,127.17,127.15,28.98996919]
[1769247214009,3.3527756,127.18,127.15,28.98996919]
[1769247214179,5.89078149,127.17,127.15,28.98996919]
[1769247214383,3.3527756,127.18,127.15,28.98996919]
[1769247214598,5.89046275,127.17,127.15,28.98996919]
[1769247214798,3.3527756,127.18,127.15,28.98996919]
[1769247214998,5.89046191,127.17,127.15,28.98996919]
[1769247215202,3.3527756,127.18,127.15,28.98996919]
[1769247215408,5.89022723,127.17,127.15,28.98996919]
[1769247215591,3.3527756,127.18,127.15,28.98996919]
[1769247215793,5.89020085,127.17,127.15,28.98996919]
[1769247216002,3.3527756,127.18,127.15,28.98996919]
[1769247216203,5.89020168,127.17,127.15,28.98996919]
[1769247216393,3.3527756,127.18,127.15,28.98996919]
[1769247216594,5.88997563,127.17,127.15,28.98996919]
[1769247216806,3.3527756,127.18,127.15,28.98996919]
[1769247217120,5.8899748,127.17,127.15,28.98996919]
[1769247217417,3.3527756,127.18,127.15,28.98996919]
[1769247217585,5.88977795,127.17,127.15,28.98996919]
[1769247217785,3.3527756,127.18,127.15,28.98996919]
[1769247218085,5.88977795,127.17,127.15,28.98996919]
[1769247218287,3.3527756,127.18,127.15,28.98996919]
[1769247218586,5.88950323,127.17,127.15,28.98996919]
[1769247218784,3.3527756,127.18,127.15,28.98996919]
[1769247219013,5.88950323,127.17,127.15,28.98996919]
[1769247219313,3.3527756,127.18,127.15,28.98996919]
[1769247219512,5.88946487,127.17,127.15,28.98996919]
[1769247219715,3.3527756,127.18,127.15,28.98996919]
[1769247219906,5.88936436,127.17,127.15,28.98996919]
[1769247220108,3.3527756,127.18,127.15,28.98996919]
[1769247220914,5.88907628,127.17,127.15,28.98959117]
[1769247221213,3.3527756,127.18,127.15,28.98959117]
[1769247221811,5.88915412,127.17,127.15,28.98959117]
[1769247221991,3.3527756,127.18,127.15,28.98959117]
[1769247222908,3.3527756,127.18,127.15,26.87025353]
[1769247223111,5.88936391,127.17,127.15,26.87025353]
[1769247223414,3.3527756,127.18,127.15,26.87025353]
[1769247223593,5.88933347,127.17,127.15,26.87025353]
[1769247223793,3.3527756,127.18,127.15,26.87025353]
[1769247224092,5.88933264,127.17,127.15,26.87025353]
[1769247224391,3.3527756,127.18,127.15,26.87025353]
[1769247224592,5.88931372,127.17,127.15,26.87025353]
[1769247224787,3.3527756,127.18,127.15,26.87025353]
[1769247224987,5.88931372,127.17,127.15,26.87025353]
[1769247225293,3.3527756,127.18,127.15,26.87025353]
[1769247229224,3.3527756,127.18,127.15,28.98959117]
[1769247237239,3.3527756,127.18,127.15,26.87025353]
[1769247238023,3.3527756,127.18,127.16,3.14182317]
[1769247240824,103.3,127.19,127.16,3.14182317]
[1769247241031,106.67433454,127.19,127.16,5.26116081]
[1769247241405,106.67433454,127.19,127.16,28.86555122]
[1769247241606,3.37433454,127.19,127.16,28.86555122]
[1769247242222,3.37433454,127.19,127.16,26.74621358]
[1769247247837,3.37433454,127.19,127.16,28.86555122]
[1769247251214,3.37433454,127.19,127.17,3.20152231]
[1769247252142,3.37433454,127.19,127.16,25.72372805]
[1769247252315,3.37433454,127.19,127.16,28.92525036]
[1769247259017,9.06904723,127.18,127.15,3.20152231]
[1769247259219,3.18152342,127.18,127.15,26.80777009]
[1769247264450,3.18152342,127.18,127.15,28.92710773]
[1769247267469,3.18152342,127.18,127.15,26.80777009]
[1769247269870,9.06855233,127.17,127.15,23.60624778]
[1769247270045,3.18152342,127.17,127.15,23.60624778]
[1769247270363,3.18152342,127.17,127.14,20.44152231]
[1769247270563,3.18152342,127.17,127.14,44.04777009]
[1769247276477,3.18152342,127.17,127.14,46.16710773]
[1769247278264,3.18152342,127.17,127.14,44.04777009]
[1769247279756,3.18152342,127.17,127.14,20.44152231]
[1769247279956,3.18152342,127.17,127.15,7.86230776]
[1769247285986,3.18152342,127.17,127.14,20.44152231]
[1769247286284,3.18152342,127.17,127.14,36.16613783]
[1769247320828,3.18152342,127.17,127.14,38.28576223]
[1769247321510,3.18152342,127.17,127.14,22.56114671]
[1769247323315,3.18152342,127.17,127.14,5.32114671]
[1769247326623,3.18152342,127.17,127.15,3.24192947]
[1769247326810,3.10419913,127.18,127.15,3.24192947]
[1769247326997,5.89204519,127.17,127.15,3.24192947]
[1769247327197,3.10419913,127.18,127.15,3.24192947]
[1769247327398,5.89202171,127.17,127.15,3.24192947]
[1769247327720,3.10419913,127.18,127.15,3.24192947]
[1769247327923,5.89204372,127.17,127.15,3.24192947]
[1769247328223,3.10419913,127.18,127.15,3.24192947]
[1769247328517,5.89173196,127.17,127.15,3.24192947]
[1769247328718,3.10419913,127.18,127.15,3.24192947]
[1769247328906,5.89164704,127.17,127.15,3.24192947]
[1769247329111,3.10419913,127.18,127.15,3.24192947]
[1769247329303,5.89193842,127.17,127.15,3.24192947]
[1769247329503,3.10419913,127.18,127.15,3.24192947]
[1769247329711,5.89195591,127.17,127.15,3.24192947]
[1769247329921,3.10419913,127.18,127.15,3.24192947]
[1769247330124,5.89195673,127.17,127.15,3.24192947]
[1769247330422,3.10419913,127.18,127.15,3.24192947]
[1769247330602,5.89201261,127.17,127.15,3.24192947]
[1769247330802,3.10419913,127.18,127.15,3.24192947]
[1769247331003,5.89201261,127.17,127.15,3.24192947]
[1769247331204,3.10419913,127.18,127.15,3.24192947]
[1769247331411,5.89204731,127.17,127.15,3.24192947]
[1769247331720,3.10419913,127.18,127.15,3.24192947]
[1769247331921,5.89206467,127.17,127.15,3.24192947]
[1769247332099,3.10419913,127.18,127.15,3.24192947]
[1769247332298,5.89235172,127.17,127.15,3.24192947]
[1769247332507,3.10419913,127.18,127.15,3.24192947]
[1769247332705,5.89236665,127.17,127.15,3.24192947]
[1769247332906,3.10419913,127.18,127.15,3.24192947]
[1769247333113,5.89260771,127.17,127.15,3.24192947]
[1769247333312,3.10419913,127.18,127.15,3.24192947]
[1769247333517,5.89299243,127.17,127.15,3.24192947]
[1769247333717,3.10419913,127.18,127.15,3.24192947]
[1769247333917,5.89276333,127.17,127.15,3.24192947]
[1769247334118,3.10419913,127.18,127.15,3.24192947]
[1769247334421,5.89342043,127.17,127.15,3.24192947]
[1769247334725,3.10419913,127.18,127.15,3.24192947]
[1769247334920,5.89390443,127.17,127.15,3.24192947]
[1769247335106,3.10419913,127.18,127.15,3.24192947]
[1769247335307,5.89310308,127.17,127.15,3.24192947]
[1769247335521,3.10419913,127.18,127.15,3.24192947]
[1769247335706,5.89309757,127.17,127.15,3.24192947]
[1769247335912,3.10419913,127.18,127.15,3.24192947]
[1769247336130,5.89309839,127.17,127.15,3.24192947]
[1769247336328,3.10419913,127.18,127.15,3.24192947]
[1769247336515,5.8930962,127.17,127.15,3.24192947]
[1769247336704,3.10419913,127.18,127.15,3.24192947]
[1769247336905,5.8930962,127.17,127.15,3.24192947]
[1769247337106,3.10419913,127.18,127.15,3.24192947]
[1769247337324,5.89309578,127.17,127.15,3.24192947]
[1769247337504,3.10419913,127.18,127.15,3.24192947]
[1769247337704,5.89309219,127.17,127.15,3.24192947]
[1769247337917,3.10419913,127.18,127.15,3.24192947]
[1769247338124,5.89309219,127.17,127.15,3.24192947]
[1769247338329,3.10419913,127.18,127.15,3.24192947]
[1769247338523,5.89310307,127.17,127.15,3.24192947]
[1769247338714,3.10419913,127.18,127.15,3.24192947]
[1769247338916,5.89310225,127.17,127.15,3.24192947]
[1769247339118,3.10419913,127.18,127.15,3.24192947]
[1769247339319,5.89310211,127.17,127.15,3.24192947]
[1769247339518,3.10419913,127.18,127.15,3.24192947]
[1769247339719,5.89309942,127.17,127.15,3.24192947]
[1769247339917,3.10419913,127.18,127.15,3.24192947]
[1769247340108,5.89309942,127.17,127.15,3.24192947]
[1769247340309,3.10419913,127.18,127.15,3.24192947]
[1769247340510,5.89309851,127.17,127.15,3.24192947]
[1769247340711,3.10419913,127.18,127.15,3.24192947]
[1769247340933,5.89309621,127.17,127.15,3.24192947]
[1769247341126,3.10419913,127.18,127.15,3.24192947]
[1769247341435,5.89309461,127.17,127.15,3.24192947]
[1769247341635,3.10419913,127.18,127.15,3.24192947]
[1769247341932,5.89309267,127.17,127.15,3.24192947]
[1769247342113,3.10419913,127.18,127.15,3.24192947]
[1769247342314,5.89309277,127.17,127.15,3.24192947]
[1769247342512,3.10419913,127.18,127.15,3.24192947]
[1769247342734,5.89309039,127.17,127.15,3.24192947]
[1769247343033,3.10419913,127.18,127.15,3.24192947]
[1769247343632,5.89308974,127.17,127.15,3.24192947]
[1769247343814,9.29757853,127.17,127.15,3.24192947]
[1769247344013,3.40448879,127.17,127.15,3.24192947]
[1769247347549,3.37097701,127.17,127.15,3.24192947]
[1769247349244,3.37097701,127.17,127.13,41.27503696]
[1769247349543,3.37097701,127.17,127.14,3.11069768]
[1769247351446,3.37097701,127.17,127.14,5.23030883]
[1769247352123,5.49058816,127.17,127.13,27.14573464]
[1769247352325,3.40448879,127.16,127.13,4.38860501]
[1769247354244,3.40448879,127.16,127.13,6.50821616]
[1769247354633,3.40448879,127.16,127.13,4.38860501]
[1769247359530,3.40448879,127.16,127.14,3.11069768]
[1769247365858,26.85609575,127.18,127.15,3.08103927]
[1769247366059,3.24613235,127.18,127.15,3.08103927]
[1769247366353,3.24613235,127.18,127.14,5.20065042]
[1769247366736,3.24613235,127.18,127.14,8.34839781]
[1769247366936,3.24613235,127.18,127.15,3.08103927]
[1769247370250,3.24613235,127.18,127.15,5.20065042]
[1769247370762,3.24613235,127.18,127.15,10.40130084]
[1769247372758,3.24613235,127.18,127.15,8.28168969]
[1769247383079,3.24613235,127.18,127.15,3.08103927]
[1769247391288,11.67917779,127.19,127.16,3.26375413]
[1769247391482,3.3974881,127.19,127.16,3.26375413]
[1769247393263,2.11961115,127.19,127.16,3.26375413]
[1769247393474,3.31761982,127.18,127.16,3.26375413]
[1769247394184,3.31761982,127.18,127.15,3.15778507]
[1769247409278,3.31761982,127.18,127.15,13.5588121]
[1769247410513,3.31761982,127.18,127.15,3.15778507]
[1769247410803,3.31761982,127.18,127.15,16.71659717]
[1769247411302,3.31761982,127.18,127.15,3.15778507]
[1769247430408,3.31761982,127.18,127.15,12.30161792]
[1769247466544,3.31761982,127.18,127.15,3.15778507]
[1769247480048,3.31761982,127.18,127.15,5.27701042]
[1769247493957,3.31761982,127.18,127.15,3.15778507]
[1769247517288,2.11922535,127.17,127.14,12.30161792]
[1769247517574,8.00491938,127.16,127.13,1.27790733]
[1769247517776,12.30161792,127.16,127.13,1.27790733]
[1769247519379,3.29961787,127.15,127.13,1.27790733]
[1769247520166,3.29961787,127.15,127.13,3.39713268]
[1769247525385,3.29961787,127.15,127.14,2.11922535]
[1769247526264,3.29961787,127.15,127.13,3.39713268]
[1769247526988,3.29961787,127.15,127.13,3.39748747]
[1769247532887,3.29961787,127.15,127.12,0.1]
[1769247533085,3.29961787,127.15,127.12,5.49779763]
[1769247543502,3.29961787,127.15,127.12,3.37821749]
[1769247545603,7.4636687,127.14,127.1,0.1]
[1769247545900,5.87551648,127.13,127.1,0.1]
[1769247546080,1.02668283,127.13,127.1,0.1]
[1769247547882,2.11958014,127.13,127.1,0.1]
[1769247548205,1.02326755,127.12,127.1,0.1]
[1769247548587,3.14284769,127.12,127.1,0.1]
[1769247550609,2.11958014,127.12,127.1,0.1]
[1769247550803,3.13624936,127.12,127.1,0.1]
[1769247551278,1.01666922,127.11,127.1,0.1]
[1769247551904,3.13325586,127.12,127.1,0.1]
[1769247552805,1.01367572,127.12,127.1,0.1]
[1769247559611,1.01367572,127.12,127.08,3.26308574]
[1769247559809,0.99093292,127.1,127.07,3.26308574]
[1769247560410,3.11051306,127.1,127.07,3.26308574]
[1769247560708,0.98823503,127.08,127.06,0.1]
[1769247561305,0.98823503,127.09,127.06,3.36308574]
[1769247568202,0.98823503,127.09,127.06,0.1]
[1769247568405,0.98823503,127.09,127.06,3.36308574]
[1769247570013,11.23033875,127.11,127.06,3.36308574]
[1769247570220,0.96530659,127.1,127.07,5.38266588]
[1769247570917,0.96290304,127.11,127.08,3.26308574]
[1769247571111,0.96290304,127.11,127.08,5.38266588]
[1769247571615,0.96290304,127.11,127.08,3.26308574]
[1769247572114,0.96290304,127.11,127.09,3.26308574]
[1769247582424,103.3,127.12,127.09,3.26308574]
[1769247582627,104.2340573,127.12,127.09,3.26308574]
[1769247599347,5.87916951,127.11,127.09,3.26308574]
[1769247599533,104.2340573,127.12,127.09,3.26308574]
[1769247599729,5.87916951,127.11,127.09,3.26308574]
[1769247599939,104.2340573,127.12,127.09,3.26308574]
[1769247600246,5.87916951,127.11,127.09,3.26308574]
[1769247600446,104.2340573,127.12,127.09,3.26308574]
[1769247600633,5.87948888,127.11,127.09,3.26308574]
[1769247600834,104.2340573,127.12,127.09,3.26308574]
[1769247601137,5.87948888,127.11,127.09,3.26308574]
[1769247601320,104.2340573,127.12,127.09,3.26308574]
[1769247601523,5.87993202,127.11,127.09,3.26308574]
[1769247601825,104.2340573,127.12,127.09,3.26308574]
[1769247602024,5.87993202,127.11,127.09,3.26308574]
[1769247602231,104.2340573,127.12,127.09,3.26308574]
[1769247602531,5.88035953,127.11,127.09,3.26308574]
[1769247602732,104.2340573,127.12,127.09,3.26308574]
[1769247602932,5.88042261,127.11,127.09,3.26308574]
[1769247603149,103.3,127.12,127.09,3.26308574]
[1769247603345,103.3,127.12,127.1,3.18096074]
[1769247606857,103.3,127.12,127.1,5.30242926]
[1769247607148,0.89571111,127.13,127.11,5.30242926]
[1769247608054,0.89571111,127.13,127.11,3.18096074]
[1769247608856,103.3,127.15,127.11,3.18096074]
[1769247609040,5.87841363,127.14,127.11,5.30242926]
[1769247609246,0.88486149,127.14,127.11,5.30242926]
[1769247609651,0.88338193,127.12,127.09,3.19822618]
[1769247609837,0.88338193,127.12,127.08,2.12146852]
[1769247610170,0.88338193,127.12,127.09,2.12146852]
[1769247611861,0.88338193,127.12,127.09,5.3196947]
[1769247620264,0.88338193,127.12,127.1,2.12146852]
[1769247620472,3.03748748,127.14,127.1,5.3196947]
[1769247620686,8.91571997,127.13,127.11,3.19822618]
[1769247620968,3.03748748,127.13,127.11,3.19822618]
[1769247621163,3.03748748,127.13,127.1,2.12146852]
[1769247621370,3.03748748,127.13,127.1,5.3196947]
[1769247622068,3.03748748,127.13,127.09,5.3196947]
[1769247622301,8.91543669,127.12,127.09,5.3196947]
[1769247622460,3.03748748,127.12,127.09,5.3196947]
[1769247622660,3.03748748,127.13,127.1,3.19822618]
[1769247629271,3.03748748,127.11,127.08,3.19822618]
[1769247645985,3.03748748,127.11,127.08,5.3196947]
[1769247648561,112.16385213,127.13,127.09,3.01900101]
[1769247648764,5.87586249,127.12,127.09,3.01900101]
[1769247648963,5.87586249,127.11,127.09,3.01900101]
[1769247649163,112.16385213,127.13,127.09,3.01900101]
[1769247649364,5.87586167,127.12,127.09,3.01900101]
[1769247649677,5.8758356,127.11,127.09,3.01900101]
[1769247649882,112.16385213,127.13,127.09,3.01900101]
[1769247650084,5.8758449,127.12,127.09,3.01900101]
[1769247650284,5.8758449,127.11,127.09,3.01900101]
[1769247650583,1.1854743,127.12,127.09,3.01900101]
[1769247650784,5.87627928,127.11,127.09,3.01900101]
[1769247651085,1.1854743,127.12,127.09,3.01900101]
[1769247651271,5.87628011,127.11,127.09,3.01900101]
[1769247651468,1.1854743,127.12,127.09,3.01900101]
[1769247651772,5.87625017,127.11,127.09,3.01900101]
[1769247651980,1.1854743,127.12,127.09,3.01900101]
[1769247652299,5.87625017,127.11,127.09,3.01900101]
[1769247652459,1.1854743,127.12,127.09,3.01900101]
[1769247652660,5.8768159,127.11,127.09,3.01900101]
[1769247652860,1.1854743,127.12,127.09,3.01900101]
[1769247653061,5.87680943,127.11,127.09,3.01900101]
[1769247653278,1.1854743,127.12,127.09,3.01900101]
[1769247653480,5.87747419,127.11,127.09,3.01900101]
[1769247653683,1.1854743,127.12,127.09,3.01900101]
[1769247653884,5.87747337,127.11,127.09,3.01900101]
[1769247654061,1.1854743,127.12,127.09,3.01900101]
[1769247654259,5.87747781,127.11,127.09,3.01900101]
[1769247654482,1.1854743,127.12,127.09,3.01900101]
[1769247654666,5.87861118,127.11,127.09,3.01900101]
[1769247654859,1.1854743,127.12,127.09,3.01900101]
[1769247655073,5.87861118,127.11,127.09,3.01900101]
[1769247655273,1.1854743,127.12,127.09,3.01900101]
[1769247655474,5.87860875,127.11,127.09,3.01900101]
[1769247655674,1.1854743,127.12,127.09,3.01900101]
[1769247655874,5.87860875,127.11,127.09,3.01900101]
[1769247656080,1.1854743,127.12,127.09,3.01900101]
[1769247656282,5.87860875,127.11,127.09,3.01900101]
[1769247656470,1.1854743,127.12,127.09,3.01900101]
[1769247656672,5.87861624,127.11,127.09,3.01900101]
[1769247656871,1.1854743,127.12,127.09,3.01900101]
[1769247657084,5.87837585,127.11,127.09,3.01900101]
[1769247657381,1.1854743,127.12,127.09,3.01900101]
[1769247657584,5.87815415,127.11,127.09,3.01900101]
[1769247657777,1.1854743,127.12,127.09,3.01900101]
[1769247657981,5.87815415,127.11,127.09,3.01900101]
[1769247658286,1.1854743,127.12,127.09,3.01900101]
[1769247658485,5.8781781,127.11,127.09,3.01900101]
[1769247658660,1.1854743,127.12,127.09,3.01900101]
[1769247658864,5.87817893,127.11,127.09,3.01900101]
[1769247659082,1.1854743,127.12,127.09,3.01900101]
[1769247659286,5.87817893,127.11,127.09,3.01900101]
[1769247659486,1.1854743,127.12,127.09,3.01900101]
[1769247659687,5.87821656,127.11,127.09,3.01900101]
[1769247659985,1.1854743,127.12,127.09,3.01900101]
[1769247660172,5.87821574,127.11,127.09,3.01900101]
[1769247660361,1.1854743,127.12,127.09,3.01900101]
[1769247660565,5.87821388,127.11,127.09,3.01900101]
[1769247660782,1.1854743,127.12,127.09,3.01900101]
[1769247660962,5.87831683,127.11,127.09,3.01900101]
[1769247661173,1.1854743,127.12,127.09,3.01900101]
[1769247661370,5.87839751,127.11,127.09,3.01900101]
[1769247661689,1.1854743,127.12,127.09,3.01900101]
[1769247661987,5.87840195,127.11,127.09,3.01900101]
[1769247662288,1.1854743,127.12,127.09,3.01900101]
[1769247662482,5.87849312,127.11,127.09,3.01900101]
[1769247662681,1.1854743,127.12,127.09,3.01900101]
[1769247662984,5.87849229,127.11,127.09,3.01900101]
[1769247663279,1.1854743,127.12,127.09,3.01900101]
[1769247663481,5.87859059,127.11,127.09,3.01900101]
[1769247663682,1.1854743,127.12,127.09,3.01900101]
[1769247663982,5.87859059,127.11,127.09,3.01900101]
[1769247664278,1.1854743,127.12,127.09,3.01900101]
[1769247664481,5.87869384,127.11,127.09,3.01900101]
[1769247664660,1.1854743,127.12,127.09,3.01900101]
[1769247664862,5.87855638,127.11,127.09,3.01900101]
[1769247665064,1.1854743,127.12,127.09,3.01900101]
[1769247665289,5.87855638,127.11,127.09,3.01900101]
[1769247665476,1.1854743,127.12,127.09,3.01900101]
[1769247665676,5.8787469,127.11,127.09,3.01900101]
[1769247665877,1.1854743,127.12,127.09,3.01900101]
[1769247666078,5.8786455,127.11,127.09,3.01900101]
[1769247666279,1.1854743,127.12,127.09,3.01900101]
[1769247666582,5.87938275,127.11,127.09,3.01900101]
[1769247666890,1.1854743,127.12,127.09,3.01900101]
[1769247667089,5.87938275,127.11,127.09,3.01900101]
[1769247667389,1.1854743,127.12,127.09,3.01900101]
[1769247667572,5.879694,127.11,127.09,3.01900101]
[1769247667772,1.1854743,127.12,127.09,3.01900101]
[1769247667975,5.87969482,127.11,127.09,3.01900101]
[1769247668174,1.1854743,127.12,127.09,3.01900101]
[1769247668374,5.87974409,127.11,127.09,3.01900101]
[1769247668672,1.1854743,127.12,127.09,3.01900101]
[1769247668872,5.8800631,127.11,127.09,3.01900101]
[1769247669078,1.1854743,127.12,127.09,3.01900101]
[1769247669375,5.8800631,127.11,127.09,3.01900101]
[1769247669566,1.1854743,127.12,127.09,3.01900101]
[1769247669769,5.88049833,127.11,127.09,3.01900101]
[1769247669965,1.1854743,127.12,127.09,3.01900101]
[1769247670170,5.88049916,127.11,127.09,3.01900101]
[1769247670465,1.1854743,127.12,127.09,3.01900101]
[1769247670669,5.88102509,127.11,127.09,3.01900101]
[1769247670869,1.1854743,127.12,127.09,3.01900101]
[1769247671098,5.88102509,127.11,127.09,3.01900101]
[1769247671289,1.1854743,127.12,127.09,3.01900101]
[1769247671595,5.88165605,127.11,127.09,3.01900101]
[1769247671781,1.1854743,127.12,127.09,3.01900101]
[1769247671977,5.88165522,127.11,127.09,3.01900101]
[1769247672197,1.1854743,127.12,127.09,3.01900101]
[1769247672389,5.88169159,127.11,127.09,3.01900101]
[1769247672590,1.1854743,127.12,127.09,3.01900101]
[1769247672793,5.88248891,127.11,127.09,3.01900101]
[1769247673087,1.1854743,127.12,127.09,3.01900101]
[1769247673291,5.88248891,127.11,127.09,3.01900101]
[1769247673481,1.1854743,127.12,127.09,3.01900101]
[1769247673682,5.88391838,127.11,127.09,3.01900101]
[1769247673900,1.1854743,127.12,127.09,3.01900101]
[1769247674099,5.88391838,127.11,127.09,3.01900101]
[1769247674293,1.1854743,127.12,127.09,3.01900101]
[1769247674491,5.88391824,127.11,127.09,3.01900101]
[1769247674694,1.1854743,127.12,127.09,3.01900101]
[1769247674878,5.88391742,127.11,127.09,3.01900101]
[1769247675080,1.1854743,127.12,127.09,3.01900101]
[1769247675280,5.88391824,127.11,127.09,3.01900101]
[1769247675494,105.4887963,127.13,127.09,3.01900101]
[1769247675694,5.88393512,127.12,127.09,3.01900101]
[1769247675896,5.88393512,127.11,127.09,3.01900101]
[1769247676088,105.4887963,127.13,127.09,3.01900101]
[1769247676291,5.88393677,127.12,127.09,3.01900101]
[1769247676494,5.88393677,127.11,127.09,3.01900101]
[1769247676801,103.36730077,127.13,127.09,3.01900101]
[1769247677000,5.88393748,127.12,127.09,3.01900101]
[1769247677194,5.88393748,127.11,127.09,3.01900101]
[1769247677493,103.36730077,127.13,127.09,3.01900101]
[1769247677694,5.88393834,127.12,127.09,3.01900101]
[1769247677895,5.88393834,127.11,127.09,3.01900101]
[1769247678097,102.17641648,127.13,127.09,3.01900101]
[1769247678297,7.07472139,127.12,127.09,3.01900101]
[1769247678502,5.88393834,127.11,127.09,3.01900101]
[1769247678797,1.19078305,127.12,127.09,3.01900101]
[1769247679105,5.88392828,127.11,127.09,3.01900101]
[1769247679308,1.19078305,127.12,127.09,3.01900101]
[1769247679482,5.88392893,127.11,127.09,3.01900101]
[1769247679781,1.19078305,127.12,127.09,3.01900101]
[1769247679983,5.88392923,127.11,127.09,3.01900101]
[1769247680292,1.19078305,127.12,127.09,3.01900101]
[1769247680492,5.88393338,127.11,127.09,3.01900101]
[1769247680706,1.19078305,127.12,127.09,3.01900101]
[1769247680899,5.88393196,127.11,127.09,3.01900101]
[1769247681199,1.19078305,127.12,127.09,3.01900101]
[1769247681399,5.88404745,127.11,127.09,3.01900101]
[1769247681606,1.19078305,127.12,127.09,3.01900101]
[1769247681782,5.8840371,127.11,127.09,3.01900101]
[1769247681984,1.19078305,127.12,127.09,3.01900101]
[1769247682202,5.88403627,127.11,127.09,3.01900101]
[1769247682382,1.19078305,127.12,127.09,3.01900101]
[1769247682583,5.88391473,127.11,127.09,3.01900101]
[1769247682784,1.19078305,127.12,127.09,3.01900101]
[1769247683001,5.88391034,127.11,127.09,3.01900101]
[1769247683301,1.19078305,127.12,127.09,3.01900101]
[1769247683502,5.88380807,127.11,127.09,3.01900101]
[1769247683713,1.19078305,127.12,127.09,3.01900101]
[1769247683895,5.88380889,127.11,127.09,3.01900101]
[1769247684097,1.19078305,127.12,127.09,3.01900101]
[1769247684395,5.88381186,127.11,127.09,3.01900101]
[1769247684597,1.19078305,127.12,127.09,3.01900101]
[1769247684797,5.88371943,127.11,127.09,3.01900101]
[1769247684987,1.19078305,127.12,127.09,3.01900101]
[1769247685189,102.17641648,127.13,127.11,5.4496715]
[1769247685417,105.30139642,127.13,127.11,5.4496715]
[1769247685792,105.30139642,127.13,127.11,3.32817597]
[1769247697630,3.28438906,127.14,127.11,3.32817597]
[1769247697813,3.28438906,127.14,127.12,3.31651368]
[1769247720748,3.28438906,127.15,127.13,3.31651368]
[1769247726254,5.8796268,127.14,127.13,3.31651368]
[1769247756665,5.8796268,127.14,127.11,2.12063891]
[1769247756854,3.28438906,127.15,127.12,3.26360513]
[1769247757054,5.88661056,127.14,127.12,3.26360513]
[1769247757251,3.28438906,127.15,127.12,3.26360513]
[1769247757451,5.88668769,127.14,127.12,3.26360513]
[1769247757651,3.28438906,127.15,127.12,3.26360513]
[1769247757854,5.88668769,127.14,127.12,3.26360513]
[1769247758143,3.28438906,127.15,127.12,3.26360513]
[1769247758343,5.88677467,127.14,127.12,3.26360513]
[1769247758640,3.28438906,127.15,127.12,3.26360513]
[1769247758840,5.88676438,127.14,127.12,3.26360513]
[1769247759057,3.28438906,127.15,127.12,3.26360513]